[Event "Early-Titled-Tuesday-Blitz-February-20-2024"]
[Site "Chess.com"]
[Date "2024.02.20"]
[Round "7"]
[White "Evgeny81"]
[Black "VinzentSpitzl"]
[Result "1-0"]
[WhiteElo "2767"]
[BlackElo "2549"]
[TimeControl "180+1"]
[EndTime "9:20:03 PST"]
[Termination "Evgeny81 won by checkmate"]

1. e4 {[%clk 0:03:00.9]} 1... c5 {[%clk 0:02:59.2]} 2. Nc3 {[%clk 0:02:59.3]}
2... d6 {[%clk 0:02:58.8]} 3. f4 {[%clk 0:02:59.1]} 3... g6 {[%clk 0:02:59.1]}
4. d3 {[%clk 0:02:58.1]} 4... Bg7 {[%clk 0:02:58.1]} 5. g3 {[%clk 0:02:58.3]}
5... Nc6 {[%clk 0:02:57.9]} 6. Bg2 {[%clk 0:02:58.5]} 6... Nf6 {[%clk
0:02:58.2]} 7. Nf3 {[%clk 0:02:58.2]} 7... O-O {[%clk 0:02:56.7]} 8. O-O {[%clk
0:02:58.8]} 8... Bg4 {[%clk 0:02:51.8]} 9. h3 {[%clk 0:02:57.6]} 9... Bxf3
{[%clk 0:02:51.9]} 10. Qxf3 {[%clk 0:02:57]} 10... Nd4 {[%clk 0:02:47.5]} 11.
Qf2 {[%clk 0:02:57]} 11... Rb8 {[%clk 0:02:46.8]} 12. a4 {[%clk 0:02:55.5]}
12... e6 {[%clk 0:02:35.7]} 13. Be3 {[%clk 0:02:52.6]} 13... Nd7 {[%clk
0:02:33.6]} 14. Kh2 {[%clk 0:02:45.6]} 14... a6 {[%clk 0:02:27.5]} 15. g4 {[%clk
0:02:34.6]} 15... b5 {[%clk 0:02:22]} 16. axb5 {[%clk 0:02:35.5]} 16... axb5
{[%clk 0:02:22.4]} 17. h4 {[%clk 0:02:31]} 17... b4 {[%clk 0:02:16.6]} 18. Nd1
{[%clk 0:02:30.8]} 18... b3 {[%clk 0:02:16.1]} 19. c3 {[%clk 0:02:27.4]} 19...
Nc2 {[%clk 0:02:14.5]} 20. Ra7 {[%clk 0:02:26]} 20... Nxe3 {[%clk 0:02:12.7]}
21. Nxe3 {[%clk 0:02:25.7]} 21... Ra8 {[%clk 0:02:01.2]} 22. Rb7 {[%clk
0:02:09.8]} 22... Ra2 {[%clk 0:01:39.2]} 23. Rxb3 {[%clk 0:02:09.1]} 23... Qc7
{[%clk 0:01:37.9]} 24. Re1 {[%clk 0:01:52]} 24... Rb8 {[%clk 0:01:36.7]} 25.
Rxb8+ {[%clk 0:01:51.8]} 25... Qxb8 {[%clk 0:01:37.6]} 26. Re2 {[%clk
0:01:52.5]} 26... Nb6 {[%clk 0:01:22.8]} 27. g5 {[%clk 0:01:45]} 27... Na4
{[%clk 0:01:17.6]} 28. Nc4 {[%clk 0:01:45]} 28... Nb6 {[%clk 0:01:11.4]} 29.
Nxb6 {[%clk 0:01:38]} 29... Qxb6 {[%clk 0:01:10.9]} 30. Bh3 {[%clk 0:01:30.7]}
30... Qb5 {[%clk 0:01:05.9]} 31. Rd2 {[%clk 0:01:27.6]} 31... Qb3 {[%clk
0:00:56.7]} 32. Bg4 {[%clk 0:01:25.2]} 32... Ra1 {[%clk 0:00:40.9]} 33. h5
{[%clk 0:01:23.2]} 33... Qb5 {[%clk 0:00:38.1]} 34. h6 {[%clk 0:01:21.8]} 34...
Bh8 {[%clk 0:00:38.3]} 35. Kg2 {[%clk 0:01:15]} 35... Ra2 {[%clk 0:00:36.9]} 36.
Bf3 {[%clk 0:01:13.6]} 36... Qa6 {[%clk 0:00:26.5]} 37. f5 {[%clk 0:01:08.2]}
37... Be5 {[%clk 0:00:22.2]} 38. fxe6 {[%clk 0:01:04.7]} 38... fxe6 {[%clk
0:00:21.9]} 39. Bg4 {[%clk 0:01:02]} 39... d5 {[%clk 0:00:15.8]} 40. exd5 {[%clk
0:00:55.4]} 40... exd5 {[%clk 0:00:15.5]} 41. Qf3 {[%clk 0:00:53.4]} 41... Qd6
{[%clk 0:00:14.5]} 42. Rf2 {[%clk 0:00:49.9]} 42... Ra8 {[%clk 0:00:08.3]} 43.
Qf7+ {[%clk 0:00:45.8]} 43... Kh8 {[%clk 0:00:08]} 44. Be6 {[%clk 0:00:32.8]}
44... Qc7 {[%clk 0:00:02.9]} 45. Qf8+ {[%clk 0:00:29.6]} 45... Rxf8 {[%clk
0:00:02]} 46. Rxf8# {[%clk 0:00:30.5]} 1-0

[Event "Early-Titled-Tuesday-Blitz-February-20-2024"]
[Site "Chess.com"]
[Date "2024.02.20"]
[Round "7"]
[White "Chessmissile07"]
[Black "deribas12345"]
[Result "1-0"]
[WhiteElo "2879"]
[BlackElo "2615"]
[TimeControl "180+1"]
[EndTime "9:20:04 PST"]
[Termination "Chessmissile07 won by resignation"]

1. a3 {[%clk 0:03:00.9]} 1... g6 {[%clk 0:02:52]} 2. g3 {[%clk 0:02:56.7]} 2...
Bg7 {[%clk 0:02:51.6]} 3. c4 {[%clk 0:02:57.2]} 3... e5 {[%clk 0:02:50.8]} 4.
Bg2 {[%clk 0:02:57.3]} 4... Nf6 {[%clk 0:02:45.8]} 5. Nc3 {[%clk 0:02:56.5]}
5... c6 {[%clk 0:02:42.5]} 6. e4 {[%clk 0:02:51.8]} 6... O-O {[%clk 0:02:40.3]}
7. Nge2 {[%clk 0:02:51.7]} 7... d6 {[%clk 0:02:33.5]} 8. O-O {[%clk 0:02:50.8]}
8... Be6 {[%clk 0:02:25.7]} 9. b3 {[%clk 0:02:48.7]} 9... Qc8 {[%clk 0:02:20.7]}
10. d4 {[%clk 0:02:47.8]} 10... Bh3 {[%clk 0:02:18.7]} 11. d5 {[%clk 0:02:47.2]}
11... Bxg2 {[%clk 0:02:15.2]} 12. Kxg2 {[%clk 0:02:47]} 12... c5 {[%clk
0:02:09]} 13. Qd3 {[%clk 0:02:41]} 13... Re8 {[%clk 0:02:08.3]} 14. b4 {[%clk
0:02:37.2]} 14... Nbd7 {[%clk 0:02:07.8]} 15. Be3 {[%clk 0:02:31.6]} 15... b6
{[%clk 0:02:06.2]} 16. Rfc1 {[%clk 0:02:29.5]} 16... a6 {[%clk 0:01:54.4]} 17.
Rab1 {[%clk 0:02:28.6]} 17... Rf8 {[%clk 0:01:45.4]} 18. bxc5 {[%clk 0:02:27]}
18... bxc5 {[%clk 0:01:42.1]} 19. Rb3 {[%clk 0:02:22.9]} 19... Ng4 {[%clk
0:01:36.7]} 20. Rcb1 {[%clk 0:02:19.4]} 20... Nxe3+ {[%clk 0:01:32.5]} 21. Qxe3
{[%clk 0:02:18.8]} 21... Rb8 {[%clk 0:01:28.5]} 22. Rxb8 {[%clk 0:02:13]} 22...
Nxb8 {[%clk 0:01:28.5]} 23. Na4 {[%clk 0:02:13]} 23... Nd7 {[%clk 0:01:24.5]}
24. Qb3 {[%clk 0:02:06.3]} 24... f5 {[%clk 0:01:07.6]} 25. Nb6 {[%clk
0:02:00.5]} 25... Nxb6 {[%clk 0:01:03]} 26. Qxb6 {[%clk 0:02:01.4]} 26... f4
{[%clk 0:00:21.2]} 27. f3 {[%clk 0:01:55.1]} 27... fxg3 {[%clk 0:00:21.2]} 28.
hxg3 {[%clk 0:01:53.4]} 28... Qd7 {[%clk 0:00:18.5]} 29. Qb7 {[%clk 0:01:45.8]}
29... Qa4 {[%clk 0:00:17.1]} 30. Qb3 {[%clk 0:01:40.4]} 30... Qa5 {[%clk
0:00:14.6]} 31. Rb2 {[%clk 0:01:30.7]} 31... Bh6 {[%clk 0:00:14.6]} 32. Qc3
{[%clk 0:01:25.1]} 32... Qa4 {[%clk 0:00:13.6]} 33. Qd3 {[%clk 0:01:20.5]} 33...
Bg5 {[%clk 0:00:07.8]} 34. Kf2 {[%clk 0:00:58]} 34... h5 {[%clk 0:00:06.7]} 35.
Rb6 {[%clk 0:00:55.7]} 35... Be7 {[%clk 0:00:06.6]} 36. Rb7 {[%clk 0:00:54.4]}
36... Rf7 {[%clk 0:00:06.7]} 37. Qb3 {[%clk 0:00:25.6]} 37... Qa5 {[%clk
0:00:06.3]} 38. Qb6 {[%clk 0:00:26.2]} 38... Qd2 {[%clk 0:00:05.7]} 39. Qc6
{[%clk 0:00:26.7]} 39... Kg7 {[%clk 0:00:05.3]} 40. Qe8 {[%clk 0:00:26.4]} 40...
h4 {[%clk 0:00:03.5]} 41. g4 {[%clk 0:00:16.6]} 41... h3 {[%clk 0:00:02.1]} 42.
Rxe7 {[%clk 0:00:15.9]} 42... Rxe7 {[%clk 0:00:01.3]} 43. Qxe7+ {[%clk
0:00:16.8]} 43... Kh6 {[%clk 0:00:02]} 44. Qh4+ {[%clk 0:00:16.9]} 44... Kg7
{[%clk 0:00:02.9]} 45. Qxh3 {[%clk 0:00:17.2]} 1-0

[Event "Early-Titled-Tuesday-Blitz-February-20-2024"]
[Site "Chess.com"]
[Date "2024.02.20"]
[Round "7"]
[White "agvega14"]
[Black "DmitriiZakurdaev"]
[Result "1/2-1/2"]
[WhiteElo "2228"]
[BlackElo "2436"]
[TimeControl "180+1"]
[EndTime "9:20:05 PST"]
[Termination "Game drawn by repetition"]

1. d4 {[%clk 0:03:00]} 1... d5 {[%clk 0:02:58.9]} 2. c4 {[%clk 0:02:59]} 2... e6
{[%clk 0:02:58.3]} 3. Nc3 {[%clk 0:02:58.7]} 3... Nf6 {[%clk 0:02:58]} 4. cxd5
{[%clk 0:02:59.6]} 4... exd5 {[%clk 0:02:57.9]} 5. Bg5 {[%clk 0:02:59.4]} 5...
Be7 {[%clk 0:02:57.7]} 6. e3 {[%clk 0:02:59.4]} 6... c6 {[%clk 0:02:58]} 7. Qc2
{[%clk 0:02:59.4]} 7... Nbd7 {[%clk 0:02:57.2]} 8. Bd3 {[%clk 0:02:59.3]} 8...
Nh5 {[%clk 0:02:57.3]} 9. Bxe7 {[%clk 0:02:58.6]} 9... Qxe7 {[%clk 0:02:58.2]}
10. Nge2 {[%clk 0:02:56.5]} 10... g6 {[%clk 0:02:55.6]} 11. O-O {[%clk
0:02:55.9]} 11... O-O {[%clk 0:02:55]} 12. a3 {[%clk 0:02:51.2]} 12... a5 {[%clk
0:02:52.8]} 13. Rae1 {[%clk 0:02:46.1]} 13... Ndf6 {[%clk 0:02:51.6]} 14. e4
{[%clk 0:02:17.9]} 14... dxe4 {[%clk 0:02:47.1]} 15. Nxe4 {[%clk 0:02:18.8]}
15... Nxe4 {[%clk 0:02:36.4]} 16. Bxe4 {[%clk 0:02:19.7]} 16... Nf6 {[%clk
0:02:35.8]} 17. Bf3 {[%clk 0:02:19.2]} 17... Bf5 {[%clk 0:02:34.4]} 18. Qb3
{[%clk 0:02:18.1]} 18... Rfe8 {[%clk 0:02:25.6]} 19. h3 {[%clk 0:01:58.9]} 19...
a4 {[%clk 0:02:07.1]} 20. Qc3 {[%clk 0:01:56.3]} 20... Rad8 {[%clk 0:01:48.5]}
21. Ng3 {[%clk 0:01:53.1]} 21... Qd7 {[%clk 0:01:48.3]} 22. Rxe8+ {[%clk
0:01:46.5]} 22... Rxe8 {[%clk 0:01:45.7]} 23. Rd1 {[%clk 0:01:43.9]} 23... Be6
{[%clk 0:01:36.3]} 24. Qb4 {[%clk 0:01:30.9]} 24... Bb3 {[%clk 0:01:34.5]} 25.
Rd2 {[%clk 0:01:26.3]} 25... Re1+ {[%clk 0:01:26.8]} 26. Kh2 {[%clk 0:01:26.3]}
26... h5 {[%clk 0:01:20.5]} 27. Rd3 {[%clk 0:01:16.2]} 27... Rb1 {[%clk
0:01:11.9]} 28. Rd2 {[%clk 0:01:10.1]} 28... Qc7 {[%clk 0:00:54.8]} 29. d5
{[%clk 0:00:56.8]} 29... cxd5 {[%clk 0:00:54]} 30. Qd4 {[%clk 0:00:49.9]} 30...
Qc1 {[%clk 0:00:38.9]} 31. Ne2 {[%clk 0:00:41.7]} 31... Qc7+ {[%clk 0:00:27.9]}
32. Qf4 {[%clk 0:00:33]} 32... Qxf4+ {[%clk 0:00:22]} 33. Nxf4 {[%clk
0:00:33.9]} 33... Kg7 {[%clk 0:00:17.5]} 34. h4 {[%clk 0:00:30.6]} 34... Ne4
{[%clk 0:00:11.6]} 35. Bxe4 {[%clk 0:00:29]} 35... dxe4 {[%clk 0:00:12.5]} 36.
Kg3 {[%clk 0:00:24.6]} 36... Kf6 {[%clk 0:00:12.4]} 37. Ne2 {[%clk 0:00:22.9]}
37... Ke5 {[%clk 0:00:12.1]} 38. Nc3 {[%clk 0:00:22.8]} 38... Rc1 {[%clk
0:00:11.4]} 39. Rd7 {[%clk 0:00:19.9]} 39... f5 {[%clk 0:00:11.2]} 40. Re7+
{[%clk 0:00:18.3]} 40... Kf6 {[%clk 0:00:10.7]} 41. Rxb7 {[%clk 0:00:18.2]}
41... Rc2 {[%clk 0:00:08.4]} 42. Rb6+ {[%clk 0:00:17]} 42... Ke5 {[%clk
0:00:07.2]} 43. Rb5+ {[%clk 0:00:16.4]} 43... Kf6 {[%clk 0:00:07.2]} 44. Rb6+
{[%clk 0:00:16.5]} 44... Kg7 {[%clk 0:00:07.5]} 45. Rb7+ {[%clk 0:00:15.3]}
45... Kf6 {[%clk 0:00:06.8]} 46. Rb6+ {[%clk 0:00:15.3]} 1/2-1/2

[Event "Early-Titled-Tuesday-Blitz-February-20-2024"]
[Site "Chess.com"]
[Date "2024.02.20"]
[Round "7"]
[White "djano"]
[Black "Nouali_Mohamed"]
[Result "0-1"]
[WhiteElo "2663"]
[BlackElo "2549"]
[TimeControl "180+1"]
[EndTime "9:20:06 PST"]
[Termination "Nouali_Mohamed won by resignation"]

1. e4 {[%clk 0:03:00.9]} 1... c5 {[%clk 0:02:58.8]} 2. Nc3 {[%clk 0:03:00.3]}
2... Nc6 {[%clk 0:02:57.4]} 3. Bb5 {[%clk 0:03:00.4]} 3... Qc7 {[%clk
0:02:56.7]} 4. Nf3 {[%clk 0:02:54]} 4... e6 {[%clk 0:02:56.4]} 5. O-O {[%clk
0:02:53.8]} 5... a6 {[%clk 0:02:56.8]} 6. Bxc6 {[%clk 0:02:53.4]} 6... Qxc6
{[%clk 0:02:57.7]} 7. d4 {[%clk 0:02:54.2]} 7... cxd4 {[%clk 0:02:57.8]} 8. Nxd4
{[%clk 0:02:55.1]} 8... Qc7 {[%clk 0:02:58.4]} 9. Re1 {[%clk 0:02:52.7]} 9... h5
{[%clk 0:02:57.1]} 10. Nd5 {[%clk 0:02:43.9]} 10... exd5 {[%clk 0:02:53.8]} 11.
exd5+ {[%clk 0:02:44.8]} 11... Ne7 {[%clk 0:01:58.9]} 12. Bg5 {[%clk 0:01:59.6]}
12... d6 {[%clk 0:01:48.4]} 13. Qd3 {[%clk 0:01:59.8]} 13... f6 {[%clk
0:01:39.2]} 14. Re2 {[%clk 0:01:21.7]} 14... fxg5 {[%clk 0:01:34.2]} 15. Qg6+
{[%clk 0:01:19.3]} 15... Kd8 {[%clk 0:01:34]} 16. Qxg5 {[%clk 0:01:15.2]} 16...
Rh6 {[%clk 0:01:03.8]} 17. Rae1 {[%clk 0:01:09.4]} 17... Rf6 {[%clk 0:00:54]}
18. Qxh5 {[%clk 0:01:03.3]} 18... Qc5 {[%clk 0:00:50.7]} 19. Nb3 {[%clk
0:00:40.9]} 19... Qxd5 {[%clk 0:00:49]} 20. Qh4 {[%clk 0:00:41.1]} 20... Re6
{[%clk 0:00:37.7]} 21. Nd4 {[%clk 0:00:25.4]} 21... Rg6 {[%clk 0:00:30.5]} 22.
f3 {[%clk 0:00:17.4]} 22... Rg4 {[%clk 0:00:14.9]} 23. fxg4 {[%clk 0:00:14.5]}
23... Qxd4+ {[%clk 0:00:15.4]} 24. Kh1 {[%clk 0:00:15.1]} 24... Qxg4 {[%clk
0:00:15.9]} 25. Qh8 {[%clk 0:00:13.1]} 25... Ng6 {[%clk 0:00:08.8]} 26. Qg8
{[%clk 0:00:09.2]} 26... Bd7 {[%clk 0:00:07]} 27. Qf7 {[%clk 0:00:09.2]} 27...
Kc7 {[%clk 0:00:06.1]} 28. Re4 {[%clk 0:00:08.7]} 28... Qf5 {[%clk 0:00:06.1]}
29. Rc4+ {[%clk 0:00:08.7]} 29... Kb6 {[%clk 0:00:05.7]} 30. Rb4+ {[%clk
0:00:07.1]} 30... Kc5 {[%clk 0:00:01.6]} 31. Qb3 {[%clk 0:00:08]} 31... b5
{[%clk 0:00:01.1]} 32. a4 {[%clk 0:00:07.1]} 32... Kb6 {[%clk 0:00:01.6]} 33.
a5+ {[%clk 0:00:07.6]} 33... Ka7 {[%clk 0:00:01.8]} 34. Qe3+ {[%clk 0:00:08.2]}
34... Kb7 {[%clk 0:00:02.4]} 35. Qb6+ {[%clk 0:00:08.7]} 35... Kc8 {[%clk
0:00:02.6]} 36. Rbe4 {[%clk 0:00:09.1]} 36... Qd5 {[%clk 0:00:02.7]} 37. Rd4
{[%clk 0:00:07.3]} 37... Qc6 {[%clk 0:00:02.9]} 38. Rde4 {[%clk 0:00:06.3]}
38... Qxb6 {[%clk 0:00:03]} 39. axb6 {[%clk 0:00:06.7]} 39... Kb7 {[%clk
0:00:03.9]} 40. Rf4 {[%clk 0:00:06.5]} 40... Ne5 {[%clk 0:00:04.1]} 41. Rf7
{[%clk 0:00:07.4]} 41... Nxf7 {[%clk 0:00:04.2]} 0-1

[Event "Early-Titled-Tuesday-Blitz-February-20-2024"]
[Site "Chess.com"]
[Date "2024.02.20"]
[Round "7"]
[White "Bilan_Danila"]
[Black "NM_Antelacus"]
[Result "1-0"]
[WhiteElo "2481"]
[BlackElo "2254"]
[TimeControl "180+1"]
[EndTime "9:20:06 PST"]
[Termination "Bilan_Danila won by resignation"]

1. d4 {[%clk 0:02:44.4]} 1... Nf6 {[%clk 0:02:58.1]} 2. Nf3 {[%clk 0:02:44.8]}
2... e6 {[%clk 0:02:58.2]} 3. g3 {[%clk 0:02:45]} 3... b6 {[%clk 0:02:57.9]} 4.
Bg2 {[%clk 0:02:45.9]} 4... Bb7 {[%clk 0:02:58.3]} 5. O-O {[%clk 0:02:46.8]}
5... Be7 {[%clk 0:02:57.4]} 6. c4 {[%clk 0:02:47.4]} 6... O-O {[%clk 0:02:57]}
7. d5 {[%clk 0:02:48.1]} 7... d6 {[%clk 0:02:54.8]} 8. Nc3 {[%clk 0:02:44.7]}
8... e5 {[%clk 0:02:54.3]} 9. e4 {[%clk 0:02:44.3]} 9... a5 {[%clk 0:02:52.9]}
10. b3 {[%clk 0:02:44.2]} 10... Nbd7 {[%clk 0:02:52.7]} 11. Ne1 {[%clk
0:02:42.3]} 11... Nc5 {[%clk 0:02:50.8]} 12. Nd3 {[%clk 0:02:42.7]} 12... Bc8
{[%clk 0:02:45.9]} 13. Nxc5 {[%clk 0:02:35.4]} 13... bxc5 {[%clk 0:02:45.1]} 14.
h3 {[%clk 0:02:31.7]} 14... Bd7 {[%clk 0:02:42.7]} 15. f4 {[%clk 0:02:27]} 15...
Ne8 {[%clk 0:02:38]} 16. fxe5 {[%clk 0:02:22.6]} 16... dxe5 {[%clk 0:02:37.6]}
17. Be3 {[%clk 0:02:15.3]} 17... Bd6 {[%clk 0:02:37]} 18. g4 {[%clk 0:02:09.6]}
18... Qh4 {[%clk 0:02:32.1]} 19. Qd2 {[%clk 0:02:05]} 19... h6 {[%clk
0:02:31.8]} 20. Ne2 {[%clk 0:02:00.1]} 20... a4 {[%clk 0:02:23.3]} 21. Nc1
{[%clk 0:01:49.9]} 21... Nf6 {[%clk 0:02:17.8]} 22. Nd3 {[%clk 0:01:45.4]} 22...
axb3 {[%clk 0:02:14.3]} 23. axb3 {[%clk 0:01:45.7]} 23... Rxa1 {[%clk
0:01:48.7]} 24. Rxa1 {[%clk 0:01:46.6]} 24... Rb8 {[%clk 0:01:48.1]} 25. Bf2
{[%clk 0:01:36.3]} 25... Qg5 {[%clk 0:01:46.9]} 26. Qxg5 {[%clk 0:01:36.9]}
26... hxg5 {[%clk 0:01:46.5]} 27. Ra3 {[%clk 0:01:37]} 27... c6 {[%clk
0:01:35.7]} 28. Bxc5 {[%clk 0:01:34.8]} 28... Bxc5+ {[%clk 0:01:35]} 29. Nxc5
{[%clk 0:01:35.7]} 29... cxd5 {[%clk 0:01:34.5]} 30. exd5 {[%clk 0:01:28.5]}
30... g6 {[%clk 0:01:30.3]} 31. d6 {[%clk 0:01:23.6]} 31... Kg7 {[%clk
0:01:17.7]} 32. Ra7 {[%clk 0:01:19.5]} 32... Bc8 {[%clk 0:00:51.3]} 33. d7
{[%clk 0:01:07.1]} 33... Nxd7 {[%clk 0:00:48.5]} 34. Nxd7 {[%clk 0:01:05.3]}
34... Bxd7 {[%clk 0:00:48]} 35. Rxd7 {[%clk 0:01:06.2]} 35... Rxb3 {[%clk
0:00:47.5]} 36. Bd5 {[%clk 0:01:04.5]} 36... Rxh3 {[%clk 0:00:45.2]} 37. Rxf7+
{[%clk 0:01:04.5]} 37... Kh6 {[%clk 0:00:45.1]} 38. Kf2 {[%clk 0:00:58.8]} 38...
Rc3 {[%clk 0:00:43.5]} 39. Re7 {[%clk 0:00:55]} 39... Rc2+ {[%clk 0:00:36.8]}
40. Ke3 {[%clk 0:00:55.2]} 40... Rc3+ {[%clk 0:00:36.4]} 41. Kd2 {[%clk
0:00:46.5]} 41... Rg3 {[%clk 0:00:34.6]} 42. Be6 {[%clk 0:00:46.6]} 42... e4
{[%clk 0:00:32.8]} 43. Bd7 {[%clk 0:00:41]} 43... Rg2+ {[%clk 0:00:26.8]} 44.
Kc3 {[%clk 0:00:34.6]} 44... Rg3+ {[%clk 0:00:22.1]} 45. Kb4 {[%clk 0:00:34.5]}
45... e3 {[%clk 0:00:21.3]} 46. Re4 {[%clk 0:00:32.4]} 46... Kg7 {[%clk
0:00:14.1]} 47. c5 {[%clk 0:00:32.1]} 47... Rg1 {[%clk 0:00:11.4]} 48. Rxe3
{[%clk 0:00:30.1]} 48... Rb1+ {[%clk 0:00:10.8]} 49. Rb3 {[%clk 0:00:28.3]}
49... Rc1 {[%clk 0:00:11]} 50. c6 {[%clk 0:00:28.6]} 50... Kf6 {[%clk
0:00:11.5]} 51. Rc3 {[%clk 0:00:26.6]} 51... Rb1+ {[%clk 0:00:11.8]} 52. Ka3
{[%clk 0:00:23.8]} 52... Ke7 {[%clk 0:00:10.1]} 53. c7 {[%clk 0:00:24]} 1-0

[Event "Early-Titled-Tuesday-Blitz-February-20-2024"]
[Site "Chess.com"]
[Date "2024.02.20"]
[Round "7"]
[White "waspofborneo"]
[Black "a-z30"]
[Result "0-1"]
[WhiteElo "2232"]
[BlackElo "2483"]
[TimeControl "180+1"]
[EndTime "9:20:07 PST"]
[Termination "a-z30 won on time"]

1. h3 {[%clk 0:02:59.1]} 1... d5 {[%clk 0:02:59.9]} 2. Nf3 {[%clk 0:02:54.5]}
2... c5 {[%clk 0:02:59.7]} 3. d4 {[%clk 0:02:53.3]} 3... cxd4 {[%clk 0:02:57.7]}
4. Nxd4 {[%clk 0:02:47.7]} 4... e5 {[%clk 0:02:57.3]} 5. Nf3 {[%clk 0:02:47.5]}
5... Nc6 {[%clk 0:02:56.5]} 6. e3 {[%clk 0:02:47]} 6... Nf6 {[%clk 0:02:55.5]}
7. Be2 {[%clk 0:02:44.6]} 7... Bd6 {[%clk 0:02:29.9]} 8. a3 {[%clk 0:02:43.9]}
8... O-O {[%clk 0:02:26.4]} 9. b4 {[%clk 0:02:43.6]} 9... a6 {[%clk 0:02:26.2]}
10. Bb2 {[%clk 0:02:43.5]} 10... e4 {[%clk 0:02:18.3]} 11. Nd4 {[%clk
0:02:41.4]} 11... Ne5 {[%clk 0:02:14.3]} 12. Nd2 {[%clk 0:02:37]} 12... Qc7
{[%clk 0:02:06.6]} 13. Rc1 {[%clk 0:02:14.5]} 13... b5 {[%clk 0:02:04.5]} 14.
Nf1 {[%clk 0:02:01.7]} 14... Nc4 {[%clk 0:01:54.6]} 15. Bxc4 {[%clk 0:01:59.2]}
15... Qxc4 {[%clk 0:01:43.4]} 16. Nd2 {[%clk 0:01:30.9]} 16... Qc7 {[%clk
0:01:41.3]} 17. Ne2 {[%clk 0:01:09.9]} 17... Nd7 {[%clk 0:01:31.2]} 18. a4
{[%clk 0:01:04.2]} 18... Ne5 {[%clk 0:01:27.5]} 19. axb5 {[%clk 0:00:52.8]}
19... axb5 {[%clk 0:01:26.6]} 20. Bxe5 {[%clk 0:00:53]} 20... Bxe5 {[%clk
0:01:25.6]} 21. O-O {[%clk 0:00:49.3]} 21... Be6 {[%clk 0:00:47.4]} 22. Nb3
{[%clk 0:00:46.1]} 22... Qc4 {[%clk 0:00:40.5]} 23. c3 {[%clk 0:00:39.1]} 23...
Ra2 {[%clk 0:00:31.9]} 24. Ned4 {[%clk 0:00:32.3]} 24... h6 {[%clk 0:00:13]} 25.
Nc5 {[%clk 0:00:30]} 25... Bxd4 {[%clk 0:00:10.1]} 26. exd4 {[%clk 0:00:30.3]}
26... Qe2 {[%clk 0:00:09.3]} 27. Qxe2 {[%clk 0:00:28.4]} 27... Rxe2 {[%clk
0:00:10.2]} 28. Ra1 {[%clk 0:00:28.5]} 28... Rc2 {[%clk 0:00:06.1]} 29. Rfc1
{[%clk 0:00:28.6]} 29... Rxc1+ {[%clk 0:00:05.8]} 30. Rxc1 {[%clk 0:00:28.7]}
30... Ra8 {[%clk 0:00:06.6]} 31. Nb7 {[%clk 0:00:21.6]} 31... Ra2 {[%clk
0:00:06.5]} 32. Nc5 {[%clk 0:00:14.8]} 32... g5 {[%clk 0:00:05.3]} 33. Nb3
{[%clk 0:00:08.2]} 33... Kg7 {[%clk 0:00:05.2]} 34. Nc5 {[%clk 0:00:08.4]} 34...
Kg6 {[%clk 0:00:04.5]} 35. Nb3 {[%clk 0:00:08.6]} 35... f5 {[%clk 0:00:04.7]}
36. Nc5 {[%clk 0:00:08.6]} 36... Kf6 {[%clk 0:00:05.3]} 37. Kf1 {[%clk
0:00:07.1]} 37... f4 {[%clk 0:00:05.2]} 38. Kg1 {[%clk 0:00:06.8]} 38... Bf5
{[%clk 0:00:05.5]} 39. g3 {[%clk 0:00:02.3]} 39... e3 {[%clk 0:00:05.4]} 40.
gxf4 {[%clk 0:00:01.9]} 40... exf2+ {[%clk 0:00:04.9]} 41. Kh2 {[%clk
0:00:01.3]} 41... gxf4 {[%clk 0:00:05.8]} 0-1

[Event "Early-Titled-Tuesday-Blitz-February-20-2024"]
[Site "Chess.com"]
[Date "2024.02.20"]
[Round "7"]
[White "rcmz"]
[Black "Licancabur"]
[Result "0-1"]
[WhiteElo "2193"]
[BlackElo "2412"]
[TimeControl "180+1"]
[EndTime "9:20:08 PST"]
[Termination "Licancabur won on time"]

1. b4 {[%clk 0:03:00.9]} 1... e5 {[%clk 0:02:58.3]} 2. Bb2 {[%clk 0:03:00.1]}
2... Bxb4 {[%clk 0:02:58.5]} 3. Bxe5 {[%clk 0:02:59.9]} 3... Nf6 {[%clk
0:02:58.9]} 4. c4 {[%clk 0:03:00]} 4... O-O {[%clk 0:02:58.8]} 5. e3 {[%clk
0:02:58.6]} 5... Re8 {[%clk 0:02:58.5]} 6. Bb2 {[%clk 0:02:57]} 6... d5 {[%clk
0:02:56.8]} 7. cxd5 {[%clk 0:02:56.7]} 7... Nxd5 {[%clk 0:02:53.6]} 8. Nf3
{[%clk 0:02:57.6]} 8... c5 {[%clk 0:02:37.3]} 9. a3 {[%clk 0:02:55.1]} 9... Ba5
{[%clk 0:02:36.6]} 10. Be2 {[%clk 0:02:55.1]} 10... Nc6 {[%clk 0:02:36.1]} 11.
O-O {[%clk 0:02:53.4]} 11... Nf6 {[%clk 0:02:21]} 12. Nc3 {[%clk 0:02:45.8]}
12... Bg4 {[%clk 0:02:18.8]} 13. h3 {[%clk 0:02:44.4]} 13... Bh5 {[%clk
0:02:08.8]} 14. Nh4 {[%clk 0:02:32.5]} 14... Bxe2 {[%clk 0:01:42.5]} 15. Qxe2
{[%clk 0:02:28.3]} 15... Qd7 {[%clk 0:01:29.4]} 16. Rad1 {[%clk 0:01:28.5]}
16... Rad8 {[%clk 0:01:20.2]} 17. Qc4 {[%clk 0:01:16.5]} 17... Ne5 {[%clk
0:01:03.3]} 18. Qb5 {[%clk 0:01:14.4]} 18... Qc7 {[%clk 0:00:48.2]} 19. d4
{[%clk 0:00:50.2]} 19... cxd4 {[%clk 0:00:42.5]} 20. exd4 {[%clk 0:00:47.8]}
20... a6 {[%clk 0:00:27]} 21. Qa4 {[%clk 0:00:35]} 21... Nc4 {[%clk 0:00:26.5]}
22. Ba1 {[%clk 0:00:29.4]} 22... b5 {[%clk 0:00:26]} 23. Qb3 {[%clk 0:00:27.1]}
23... Qf4 {[%clk 0:00:22.2]} 24. Nf3 {[%clk 0:00:25.7]} 24... h6 {[%clk
0:00:17.7]} 25. a4 {[%clk 0:00:24.5]} 25... Bxc3 {[%clk 0:00:13.6]} 26. Bxc3
{[%clk 0:00:23.5]} 26... Nd5 {[%clk 0:00:13.8]} 27. axb5 {[%clk 0:00:21.5]}
27... axb5 {[%clk 0:00:13.9]} 28. Ba1 {[%clk 0:00:20.4]} 28... Rb8 {[%clk
0:00:11.8]} 29. Rfe1 {[%clk 0:00:18.2]} 29... Red8 {[%clk 0:00:11.4]} 30. Ne5
{[%clk 0:00:13.6]} 30... Nxe5 {[%clk 0:00:08.9]} 31. dxe5 {[%clk 0:00:13.7]}
31... Nb4 {[%clk 0:00:06.1]} 32. e6 {[%clk 0:00:12.2]} 32... fxe6 {[%clk
0:00:05.5]} 33. Qxe6+ {[%clk 0:00:11.5]} 33... Kh8 {[%clk 0:00:05.9]} 34. Rxd8+
{[%clk 0:00:10.8]} 34... Rxd8 {[%clk 0:00:06]} 35. Qe7 {[%clk 0:00:10.8]} 35...
Rg8 {[%clk 0:00:05.8]} 36. Qe6 {[%clk 0:00:09]} 36... Nd3 {[%clk 0:00:03.8]} 37.
Rf1 {[%clk 0:00:07.7]} 37... b4 {[%clk 0:00:03.3]} 38. g3 {[%clk 0:00:02.3]}
38... Qd2 {[%clk 0:00:03.3]} 0-1